[Event "*** SCC Grand Prix: Titled Tuesday Blitz"]
[Site "Chess.com"]
[Date "2020.07.21"]
[Round "7"]
[White "Onegust"]
[Black "vanea_03"]
[Result "0-1"]
[WhiteElo "2582"]
[BlackElo "2713"]
[TimeControl "180+1"]
[EndTime "11:17:35 PDT"]
[Termination "vanea_03 won by resignation"]

1. e4 {[%clk 0:03:00.9]} 1... e5 {[%clk 0:02:59.9]} 2. Nf3 {[%clk 0:03:00.9]}
2... Nc6 {[%clk 0:03:00.1]} 3. Bb5 {[%clk 0:03:00.7]} 3... a6 {[%clk 0:03:00.2]}
4. Ba4 {[%clk 0:03:00.4]} 4... Nf6 {[%clk 0:02:59.2]} 5. O-O {[%clk 0:03:00.7]}
5... Bc5 {[%clk 0:02:58.8]} 6. d3 {[%clk 0:02:47.2]} 6... d6 {[%clk 0:02:57.4]}
7. c3 {[%clk 0:02:44.7]} 7... b5 {[%clk 0:02:57.1]} 8. Bc2 {[%clk 0:02:39.4]}
8... h6 {[%clk 0:02:54]} 9. h3 {[%clk 0:02:38.2]} 9... O-O {[%clk 0:02:50]} 10.
a4 {[%clk 0:02:32]} 10... Rb8 {[%clk 0:02:47.2]} 11. Nbd2 {[%clk 0:02:22.3]}
11... Be6 {[%clk 0:02:38.7]} 12. Re1 {[%clk 0:02:12.1]} 12... Re8 {[%clk
0:02:34.8]} 13. Nf1 {[%clk 0:02:12]} 13... d5 {[%clk 0:02:34.2]} 14. Nxe5 {[%clk
0:01:50]} 14... Nxe5 {[%clk 0:02:27.8]} 15. d4 {[%clk 0:01:49.1]} 15... dxe4
{[%clk 0:02:25.7]} 16. dxe5 {[%clk 0:01:39.7]} 16... Qxd1 {[%clk 0:02:22]} 17.
Rxd1 {[%clk 0:01:27.8]} 17... Nd7 {[%clk 0:02:19.4]} 18. axb5 {[%clk 0:01:26.3]}
18... axb5 {[%clk 0:02:19]} 19. Bf4 {[%clk 0:01:18.6]} 19... b4 {[%clk
0:01:43.1]} 20. Bxe4 {[%clk 0:01:06.4]} 20... bxc3 {[%clk 0:01:43.4]} 21. bxc3
{[%clk 0:01:07.3]} 21... Rb3 {[%clk 0:01:43.4]} 22. Bc6 {[%clk 0:00:57.9]} 22...
Re7 {[%clk 0:01:35.2]} 23. Ra8+ {[%clk 0:00:54.9]} 23... Kh7 {[%clk 0:01:35.7]}
24. Be4+ {[%clk 0:00:49.4]} 24... g6 {[%clk 0:01:35.9]} 25. Bd5 {[%clk
0:00:49.9]} 25... Bxd5 {[%clk 0:01:32]} 26. Rxd5 {[%clk 0:00:50.8]} 26... Rxc3
{[%clk 0:01:32.3]} 27. Bd2 {[%clk 0:00:26.7]} 27... Rc2 {[%clk 0:01:26.9]} 28.
Rc8 {[%clk 0:00:18.6]} 28... Nb6 {[%clk 0:01:20.3]} 29. Rcd8 {[%clk 0:00:12.2]}
29... Nxd5 {[%clk 0:01:20.6]} 30. Rxd5 {[%clk 0:00:13.1]} 30... Bb6 {[%clk
0:01:21.3]} 31. Be3 {[%clk 0:00:11.8]} 31... h5 {[%clk 0:00:58.4]} 32. g4 {[%clk
0:00:07.6]} 32... hxg4 {[%clk 0:00:56.1]} 33. hxg4 {[%clk 0:00:08.5]} 33... Rc4
{[%clk 0:00:56.3]} 34. f3 {[%clk 0:00:06.3]} 34... c6 {[%clk 0:00:52.4]} 35. Rd6
{[%clk 0:00:01.9]} 35... Bxe3+ {[%clk 0:00:52.4]} 36. Nxe3 {[%clk 0:00:02.5]}
36... Rc1+ {[%clk 0:00:53.1]} 37. Kf2 {[%clk 0:00:02.8]} 37... Rxe5 {[%clk
0:00:53.4]} 38. Rd7 {[%clk 0:00:03.3]} 38... Kg7 {[%clk 0:00:52.8]} 39. f4
{[%clk 0:00:03.5]} 39... Re4 {[%clk 0:00:49.9]} 40. f5 {[%clk 0:00:03.3]} 40...
Rc3 {[%clk 0:00:47.3]} 41. Ng2 {[%clk 0:00:02.8]} 41... Rxg4 {[%clk 0:00:45.8]}
42. fxg6 {[%clk 0:00:03.7]} 42... Rc2+ {[%clk 0:00:45.9]} 43. Kf3 {[%clk
0:00:03.8]} 43... Rgxg2 {[%clk 0:00:45.5]} 44. Rxf7+ {[%clk 0:00:02.8]} 44...
Kxg6 {[%clk 0:00:45.4]} 45. Rc7 {[%clk 0:00:03.7]} 45... c5 {[%clk 0:00:42.2]}
46. Ke3 {[%clk 0:00:04.6]} 0-1

[Event "*** SCC Grand Prix: Titled Tuesday Blitz"]
[Site "Chess.com"]
[Date "2020.07.21"]
[Round "7"]
[White "chalowey97"]
[Black "Ladislav1969"]
[Result "1-0"]
[WhiteElo "2134"]
[BlackElo "2318"]
[TimeControl "180+1"]
[EndTime "11:17:39 PDT"]
[Termination "chalowey97 won on time"]

1. d4 {[%clk 0:03:00.7]} 1... Nf6 {[%clk 0:02:52.4]} 2. Nf3 {[%clk 0:03:00.5]}
2... g6 {[%clk 0:02:52]} 3. Nc3 {[%clk 0:02:59.2]} 3... d5 {[%clk 0:02:50.6]} 4.
Bf4 {[%clk 0:02:58.5]} 4... Bg7 {[%clk 0:02:50.1]} 5. Qd2 {[%clk 0:02:58.5]}
5... Ne4 {[%clk 0:02:45]} 6. Nxe4 {[%clk 0:02:58.1]} 6... dxe4 {[%clk
0:02:44.4]} 7. Ne5 {[%clk 0:02:59]} 7... c5 {[%clk 0:02:21.4]} 8. e3 {[%clk
0:02:51.7]} 8... cxd4 {[%clk 0:02:11.6]} 9. Bb5+ {[%clk 0:02:22.4]} 9... Bd7
{[%clk 0:01:56.7]} 10. Nxd7 {[%clk 0:01:54.6]} 10... Nxd7 {[%clk 0:01:55.1]} 11.
exd4 {[%clk 0:01:55.1]} 11... O-O {[%clk 0:01:49.6]} 12. O-O {[%clk 0:01:54.7]}
12... e5 {[%clk 0:01:34.9]} 13. dxe5 {[%clk 0:01:45.7]} 13... Nxe5 {[%clk
0:01:32.4]} 14. Qxd8 {[%clk 0:01:24.8]} 14... Rfxd8 {[%clk 0:01:28.6]} 15. Rad1
{[%clk 0:01:23.4]} 15... Rac8 {[%clk 0:01:19.1]} 16. Rxd8+ {[%clk 0:01:18.9]}
16... Rxd8 {[%clk 0:01:18.5]} 17. Re1 {[%clk 0:01:11.9]} 17... f5 {[%clk
0:01:08.8]} 18. Ba4 {[%clk 0:00:51.1]} 18... h6 {[%clk 0:00:53.3]} 19. h3 {[%clk
0:00:34.6]} 19... g5 {[%clk 0:00:47.9]} 20. Be3 {[%clk 0:00:33.1]} 20... b6
{[%clk 0:00:43.2]} 21. Bb3+ {[%clk 0:00:30.5]} 21... Kh7 {[%clk 0:00:41.1]} 22.
a4 {[%clk 0:00:25.9]} 22... Nc6 {[%clk 0:00:34.4]} 23. h4 {[%clk 0:00:18.6]}
23... f4 {[%clk 0:00:31.4]} 24. Bc1 {[%clk 0:00:16.3]} 24... e3 {[%clk
0:00:26.5]} 25. hxg5 {[%clk 0:00:16.2]} 25... exf2+ {[%clk 0:00:22.7]} 26. Kxf2
{[%clk 0:00:15.8]} 26... hxg5 {[%clk 0:00:22.7]} 27. c3 {[%clk 0:00:16]} 27...
Bf8 {[%clk 0:00:19.8]} 28. g3 {[%clk 0:00:15.2]} 28... Bc5+ {[%clk 0:00:18]} 29.
Kf3 {[%clk 0:00:15.5]} 29... Rf8 {[%clk 0:00:13]} 30. gxf4 {[%clk 0:00:14.9]}
30... gxf4 {[%clk 0:00:12.7]} 31. Kg4 {[%clk 0:00:07.6]} 31... Ne7 {[%clk
0:00:08.6]} 32. Bxf4 {[%clk 0:00:07.1]} 32... Ng6 {[%clk 0:00:07.2]} 33. Rh1+
{[%clk 0:00:06.8]} 33... Kg7 {[%clk 0:00:06.2]} 34. Bh6+ {[%clk 0:00:07.3]}
34... Kf6 {[%clk 0:00:02.8]} 35. Rf1+ {[%clk 0:00:07.4]} 1-0

[Event "*** SCC Grand Prix: Titled Tuesday Blitz"]
[Site "Chess.com"]
[Date "2020.07.21"]
[Round "7"]
[White "Alexander_Zubov"]
[Black "Reader777"]
[Result "1-0"]
[WhiteElo "2855"]
[BlackElo "2661"]
[TimeControl "180+1"]
[EndTime "11:17:40 PDT"]
[Termination "Alexander_Zubov won by resignation"]

1. d4 {[%clk 0:03:00.9]} 1... Nf6 {[%clk 0:02:57.8]} 2. Nf3 {[%clk 0:02:59.3]}
2... e6 {[%clk 0:02:57]} 3. c4 {[%clk 0:02:58.8]} 3... c5 {[%clk 0:02:52.9]} 4.
d5 {[%clk 0:02:58.4]} 4... exd5 {[%clk 0:02:52.9]} 5. cxd5 {[%clk 0:02:59.3]}
5... d6 {[%clk 0:02:53.5]} 6. Nc3 {[%clk 0:02:59.4]} 6... g6 {[%clk 0:02:53.7]}
7. Nd2 {[%clk 0:02:59.5]} 7... Bg7 {[%clk 0:02:53.3]} 8. Nc4 {[%clk 0:02:59.5]}
8... O-O {[%clk 0:02:52.1]} 9. Bf4 {[%clk 0:02:54.5]} 9... Ne8 {[%clk
0:02:51.7]} 10. Qd2 {[%clk 0:02:53.2]} 10... a6 {[%clk 0:02:48.9]} 11. a4 {[%clk
0:02:52.3]} 11... Qc7 {[%clk 0:02:27.8]} 12. e4 {[%clk 0:02:50.9]} 12... Nd7
{[%clk 0:02:26.9]} 13. Be2 {[%clk 0:02:46.7]} 13... Rb8 {[%clk 0:02:25.5]} 14.
a5 {[%clk 0:02:45.2]} 14... b5 {[%clk 0:01:51.9]} 15. axb6 {[%clk 0:02:44.1]}
15... Nxb6 {[%clk 0:01:52.5]} 16. Na5 {[%clk 0:02:43.5]} 16... Bd7 {[%clk
0:01:44.9]} 17. O-O {[%clk 0:02:40.5]} 17... Nf6 {[%clk 0:01:38.4]} 18. Qe3
{[%clk 0:02:24.2]} 18... Rfe8 {[%clk 0:01:29.4]} 19. Qg3 {[%clk 0:02:22.8]}
19... Bf8 {[%clk 0:01:27]} 20. Bf3 {[%clk 0:02:21.2]} 20... Bb5 {[%clk 0:01:22]}
21. Rfe1 {[%clk 0:02:01.6]} 21... Nfd7 {[%clk 0:01:16.9]} 22. Be2 {[%clk
0:01:51.4]} 22... Bxe2 {[%clk 0:01:14.2]} 23. Rxe2 {[%clk 0:01:51.5]} 23... c4
{[%clk 0:01:00.6]} 24. Nc6 {[%clk 0:01:46.7]} 24... Rb7 {[%clk 0:00:59]} 25. Be3
{[%clk 0:01:38.8]} 25... Ne5 {[%clk 0:00:54.6]} 26. Nxe5 {[%clk 0:01:21.5]}
26... Rxe5 {[%clk 0:00:55.5]} 27. Rxa6 {[%clk 0:01:19.6]} 27... Nd7 {[%clk
0:00:48.8]} 28. Bd4 {[%clk 0:01:11.7]} 28... Re8 {[%clk 0:00:47.1]} 29. h3
{[%clk 0:01:10]} 29... Reb8 {[%clk 0:00:39.3]} 30. Rc6 {[%clk 0:01:07.9]} 30...
Qa5 {[%clk 0:00:36.4]} 31. Rxd6 {[%clk 0:01:05.3]} 31... Bxd6 {[%clk 0:00:32.8]}
32. Qxd6 {[%clk 0:01:03.4]} 32... Qc7 {[%clk 0:00:29.4]} 33. Qxc7 {[%clk
0:00:49]} 33... Rxc7 {[%clk 0:00:29.1]} 34. d6 {[%clk 0:00:49.2]} 34... Rcb7
{[%clk 0:00:24.6]} 35. Nd5 {[%clk 0:00:48.9]} 35... Rb3 {[%clk 0:00:21.5]} 36.
Bc3 {[%clk 0:00:42.8]} 36... Nc5 {[%clk 0:00:16.1]} 37. Nf6+ {[%clk 0:00:42.5]}
37... Kf8 {[%clk 0:00:15.4]} 38. Nxh7+ {[%clk 0:00:42.3]} 38... Ke8 {[%clk
0:00:15.3]} 39. Nf6+ {[%clk 0:00:42.8]} 39... Kd8 {[%clk 0:00:15.2]} 40. e5
{[%clk 0:00:42.8]} 40... R8b5 {[%clk 0:00:08.8]} 41. h4 {[%clk 0:00:35.3]} 41...
Na4 {[%clk 0:00:08.5]} 42. e6 {[%clk 0:00:33.4]} 42... fxe6 {[%clk 0:00:07.3]}
43. Rxe6 {[%clk 0:00:33.5]} 43... Kc8 {[%clk 0:00:04.7]} 44. Re8+ {[%clk
0:00:31.4]} 44... Kb7 {[%clk 0:00:05.1]} 45. d7 {[%clk 0:00:32]} 1-0

[Event "*** SCC Grand Prix: Titled Tuesday Blitz"]
[Site "Chess.com"]
[Date "2020.07.21"]
[Round "7"]
[White "ambaixador"]
[Black "Jbd735"]
[Result "1/2-1/2"]
[WhiteElo "2336"]
[BlackElo "2472"]
[TimeControl "180+1"]
[EndTime "11:17:40 PDT"]
[Termination "Game drawn by repetition"]

1. Nf3 {[%clk 0:02:59.4]} 1... d5 {[%clk 0:02:59.9]} 2. d4 {[%clk 0:02:58.5]}
2... Nf6 {[%clk 0:02:59.7]} 3. c4 {[%clk 0:02:58.4]} 3... c6 {[%clk 0:02:59.8]}
4. Qc2 {[%clk 0:02:57.5]} 4... g6 {[%clk 0:02:58.4]} 5. e3 {[%clk 0:02:56.6]}
5... Bf5 {[%clk 0:02:58.1]} 6. Bd3 {[%clk 0:02:56]} 6... Bxd3 {[%clk 0:02:58.4]}
7. Qxd3 {[%clk 0:02:56.9]} 7... Bg7 {[%clk 0:02:58.2]} 8. Nc3 {[%clk 0:02:55.6]}
8... O-O {[%clk 0:02:58.2]} 9. O-O {[%clk 0:02:55.6]} 9... Nbd7 {[%clk
0:02:56.3]} 10. Rd1 {[%clk 0:02:53.8]} 10... Re8 {[%clk 0:02:53.1]} 11. Bd2
{[%clk 0:02:51]} 11... dxc4 {[%clk 0:02:30.5]} 12. Qxc4 {[%clk 0:02:50.6]} 12...
e5 {[%clk 0:02:30.7]} 13. dxe5 {[%clk 0:02:43.4]} 13... Nxe5 {[%clk 0:02:31.6]}
14. Nxe5 {[%clk 0:02:42.9]} 14... Rxe5 {[%clk 0:02:32.5]} 15. e4 {[%clk
0:02:33.6]} 15... Qe8 {[%clk 0:02:17.1]} 16. Bf4 {[%clk 0:02:27.7]} 16... Re6
{[%clk 0:02:08.7]} 17. f3 {[%clk 0:02:27.3]} 17... Nh5 {[%clk 0:02:01]} 18. Bd6
{[%clk 0:02:10.5]} 18... Be5 {[%clk 0:01:54.8]} 19. Bxe5 {[%clk 0:02:05.8]}
19... Rxe5 {[%clk 0:01:55.7]} 20. Rd6 {[%clk 0:01:57.4]} 20... Nf4 {[%clk
0:01:43]} 21. Rad1 {[%clk 0:01:53.2]} 21... Re7 {[%clk 0:01:38.8]} 22. g3 {[%clk
0:01:46.8]} 22... Ne6 {[%clk 0:01:25.4]} 23. e5 {[%clk 0:01:40.9]} 23... Ng5
{[%clk 0:00:40.2]} 24. f4 {[%clk 0:01:38.9]} 24... Nf3+ {[%clk 0:00:36.5]} 25.
Kg2 {[%clk 0:01:30.7]} 25... Nxe5 {[%clk 0:00:36.3]} 26. fxe5 {[%clk 0:01:30.4]}
26... Rxe5 {[%clk 0:00:37.2]} 27. Rd7 {[%clk 0:01:23]} 27... Rf5 {[%clk
0:00:31.4]} 28. Ne4 {[%clk 0:01:10.5]} 28... Qe5 {[%clk 0:00:26.5]} 29. Nd6
{[%clk 0:00:53.7]} 29... Qxb2+ {[%clk 0:00:20.4]} 30. Kh1 {[%clk 0:00:46.5]}
30... Rf2 {[%clk 0:00:17.8]} 31. Qh4 {[%clk 0:00:14]} 31... Qe2 {[%clk
0:00:17.2]} 32. Rd8+ {[%clk 0:00:10]} 32... Rxd8 {[%clk 0:00:16.1]} 33. Qxd8+
{[%clk 0:00:10.9]} 33... Kg7 {[%clk 0:00:13.1]} 34. Ne8+ {[%clk 0:00:10.8]}
34... Kf8 {[%clk 0:00:07.8]} 35. Nf6+ {[%clk 0:00:10.6]} 35... Kg7 {[%clk
0:00:07.6]} 36. Ne8+ {[%clk 0:00:07.8]} 36... Kf8 {[%clk 0:00:05.4]} 37. Nf6+
{[%clk 0:00:03.8]} 37... Kg7 {[%clk 0:00:05]} 38. Ne8+ {[%clk 0:00:03.8]}
1/2-1/2

[Event "*** SCC Grand Prix: Titled Tuesday Blitz"]
[Site "Chess.com"]
[Date "2020.07.21"]
[Round "7"]
[White "Kavyev_Ruslan"]
[Black "fabianvivasz"]
[Result "1-0"]
[WhiteElo "2432"]
[BlackElo "2295"]
[TimeControl "180+1"]
[EndTime "11:17:42 PDT"]
[Termination "Kavyev_Ruslan won by resignation"]

1. d4 {[%clk 0:03:00.9]} 1... Nf6 {[%clk 0:02:59.6]} 2. c4 {[%clk 0:03:00.5]}
2... g6 {[%clk 0:02:58.3]} 3. Nc3 {[%clk 0:02:57.6]} 3... d5 {[%clk 0:02:58.2]}
4. Bf4 {[%clk 0:02:57.3]} 4... Bg7 {[%clk 0:02:56.9]} 5. e3 {[%clk 0:02:57.2]}
5... c5 {[%clk 0:02:52]} 6. dxc5 {[%clk 0:02:58.1]} 6... Be6 {[%clk 0:02:45.5]}
7. Nf3 {[%clk 0:02:48.8]} 7... Ne4 {[%clk 0:02:02.9]} 8. Nxe4 {[%clk 0:02:36.6]}
8... dxe4 {[%clk 0:02:03.8]} 9. Qxd8+ {[%clk 0:02:35.6]} 9... Kxd8 {[%clk
0:02:02]} 10. Nd4 {[%clk 0:02:36.5]} 10... Bd7 {[%clk 0:01:55.7]} 11. O-O-O
{[%clk 0:02:20.1]} 11... e5 {[%clk 0:01:47.7]} 12. Bg5+ {[%clk 0:02:19]} 12...
f6 {[%clk 0:01:47.8]} 13. Ne6+ {[%clk 0:02:04.2]} 13... Ke7 {[%clk 0:01:44.6]}
14. Nc7 {[%clk 0:01:59.5]} 14... fxg5 {[%clk 0:01:35]} 15. Nxa8 {[%clk
0:01:59.2]} 15... Na6 {[%clk 0:01:34.9]} 16. a3 {[%clk 0:01:55.2]} 16... Rxa8
{[%clk 0:01:30.2]} 17. b4 {[%clk 0:01:55.2]} 17... Ba4 {[%clk 0:01:23.5]} 18.
Rd2 {[%clk 0:01:54.5]} 18... Nc7 {[%clk 0:01:06.8]} 19. g3 {[%clk 0:01:51.5]}
19... a6 {[%clk 0:00:41.7]} 20. Bg2 {[%clk 0:01:50.2]} 20... Bc6 {[%clk
0:00:42.1]} 21. Rhd1 {[%clk 0:01:49.6]} 21... Bf8 {[%clk 0:00:32.2]} 22. Rd6
{[%clk 0:01:45.9]} 22... Ke8 {[%clk 0:00:26.9]} 23. Bh3 {[%clk 0:01:45]} 23...
Be7 {[%clk 0:00:02.7]} 24. Bd7+ {[%clk 0:01:42.3]} 24... Bxd7 {[%clk 0:00:03]}
25. Rxd7 {[%clk 0:01:43.2]} 25... Rc8 {[%clk 0:00:03.1]} 26. Kb2 {[%clk
0:01:41]} 26... h5 {[%clk 0:00:03.4]} 27. Kb3 {[%clk 0:01:40.1]} 27... g4 {[%clk
0:00:03.7]} 28. a4 {[%clk 0:01:39.8]} 28... a5 {[%clk 0:00:03.3]} 29. b5 {[%clk
0:01:35]} 29... Ne6 {[%clk 0:00:03.4]} 30. R7d5 {[%clk 0:01:30]} 30... Nxc5+
{[%clk 0:00:03.3]} 31. Kc2 {[%clk 0:01:28.2]} 31... Nd3 {[%clk 0:00:03.8]} 32.
Kb3 {[%clk 0:01:25.4]} 32... Nxf2 {[%clk 0:00:04]} 33. Rf1 {[%clk 0:01:24.1]}
33... Nd3 {[%clk 0:00:04.6]} 34. Rd1 {[%clk 0:01:18.7]} 34... Rc5 {[%clk
0:00:04.6]} 35. Rf1 {[%clk 0:01:16]} 35... Rxd5 {[%clk 0:00:04.3]} 36. cxd5
{[%clk 0:01:16.9]} 36... Bc5 {[%clk 0:00:03.9]} 37. Rf6 {[%clk 0:01:15.2]} 37...
Bxe3 {[%clk 0:00:04]} 38. Rxg6 {[%clk 0:01:15.5]} 38... Bd4 {[%clk 0:00:03.9]}
39. Kc2 {[%clk 0:01:13]} 39... e3 {[%clk 0:00:03.2]} 40. Kxd3 {[%clk 0:01:13.2]}
40... Ke7 {[%clk 0:00:03]} 41. Rg7+ {[%clk 0:01:12.1]} 41... Kd6 {[%clk
0:00:03.2]} 42. Rxb7 {[%clk 0:01:13]} 42... Kxd5 {[%clk 0:00:03.7]} 43. Rd7+
{[%clk 0:01:11.9]} 43... Kc5 {[%clk 0:00:03.6]} 44. Rh7 {[%clk 0:01:11.9]} 44...
e4+ {[%clk 0:00:03.8]} 45. Ke2 {[%clk 0:01:11.9]} 45... Kb4 {[%clk 0:00:03.5]}
46. Rd7 {[%clk 0:01:09.6]} 46... Bb6 {[%clk 0:00:03.1]} 47. Rd6 {[%clk
0:01:09.6]} 47... Bc5 {[%clk 0:00:03]} 48. Rc6 {[%clk 0:01:09.4]} 48... Bd4
{[%clk 0:00:03.1]} 49. b6 {[%clk 0:01:09.6]} 49... Kxa4 {[%clk 0:00:03]} 50. b7
{[%clk 0:01:10.2]} 50... Ba7 {[%clk 0:00:03.3]} 51. Ra6 {[%clk 0:01:09.7]} 51...
Bb8 {[%clk 0:00:03.2]} 52. Ra8 {[%clk 0:01:10.4]} 52... Be5 {[%clk 0:00:03.3]}
53. Re8 {[%clk 0:01:10.7]} 53... Bc7 {[%clk 0:00:03.5]} 54. b8=Q {[%clk
0:01:09]} 54... Bxb8 {[%clk 0:00:03.8]} 55. Rxb8 {[%clk 0:01:09.9]} 55... Ka3
{[%clk 0:00:04]} 56. Kxe3 {[%clk 0:01:10.5]} 56... a4 {[%clk 0:00:04.6]} 57.
Kxe4 {[%clk 0:01:10.6]} 57... Ka2 {[%clk 0:00:05.3]} 58. Kf5 {[%clk 0:01:10.1]}
58... a3 {[%clk 0:00:05.9]} 59. Kg5 {[%clk 0:01:09.9]} 59... Ka1 {[%clk
0:00:06.6]} 60. Ra8 {[%clk 0:01:10.3]} 60... a2 {[%clk 0:00:07.3]} 61. Kxh5
{[%clk 0:01:10.8]} 61... Kb2 {[%clk 0:00:07]} 62. Kxg4 {[%clk 0:01:11.3]} 62...
a1=Q {[%clk 0:00:07.2]} 63. Rxa1 {[%clk 0:01:12]} 63... Kxa1 {[%clk 0:00:08.1]}
64. h4 {[%clk 0:01:12.9]} 64... Kb2 {[%clk 0:00:09]} 65. h5 {[%clk 0:01:13.8]}
65... Kc3 {[%clk 0:00:09.9]} 66. h6 {[%clk 0:01:14.7]} 66... Kd4 {[%clk
0:00:10.8]} 67. h7 {[%clk 0:01:15.6]} 67... Ke5 {[%clk 0:00:11.7]} 68. h8=Q+
{[%clk 0:01:16.4]} 68... Ke4 {[%clk 0:00:12.6]} 1-0

[Event "*** SCC Grand Prix: Titled Tuesday Blitz"]
[Site "Chess.com"]
[Date "2020.07.21"]
[Round "7"]
[White "CrushingKings"]
[Black "TheCount"]
[Result "0-1"]
[WhiteElo "2521"]
[BlackElo "2659"]
[TimeControl "180+1"]
[EndTime "11:17:43 PDT"]
[Termination "TheCount won by resignation"]

1. e4 {[%clk 0:03:00.9]} 1... c5 {[%clk 0:02:59.6]} 2. d4 {[%clk 0:03:00.9]}
2... cxd4 {[%clk 0:02:59.3]} 3. c3 {[%clk 0:03:01.8]} 3... Nf6 {[%clk
0:02:56.8]} 4. e5 {[%clk 0:03:01.6]} 4... Nd5 {[%clk 0:02:57.3]} 5. Nf3 {[%clk
0:03:02.5]} 5... e6 {[%clk 0:02:56.9]} 6. cxd4 {[%clk 0:03:02.4]} 6... d6 {[%clk
0:02:57.5]} 7. a3 {[%clk 0:03:03]} 7... Be7 {[%clk 0:02:56.8]} 8. Bd3 {[%clk
0:03:03.2]} 8... b6 {[%clk 0:02:26.6]} 9. Qe2 {[%clk 0:03:01.4]} 9... Bb7 {[%clk
0:02:26.5]} 10. O-O {[%clk 0:03:01.4]} 10... Nd7 {[%clk 0:02:25.6]} 11. Bd2
{[%clk 0:03:01.1]} 11... O-O {[%clk 0:02:24.2]} 12. Nc3 {[%clk 0:02:59.1]} 12...
dxe5 {[%clk 0:02:22.7]} 13. dxe5 {[%clk 0:02:58.1]} 13... Nc5 {[%clk 0:02:20.8]}
14. Bc2 {[%clk 0:02:57.7]} 14... Nxc3 {[%clk 0:02:13.2]} 15. Bxc3 {[%clk
0:02:58.6]} 15... Ba6 {[%clk 0:02:13.6]} 16. Qe3 {[%clk 0:02:50.5]} 16... Bxf1
{[%clk 0:02:12]} 17. Rxf1 {[%clk 0:02:50.9]} 17... Qc7 {[%clk 0:01:57.1]} 18.
Ng5 {[%clk 0:01:32]} 18... g6 {[%clk 0:01:43.1]} 19. h4 {[%clk 0:01:30]} 19...
Rfd8 {[%clk 0:01:27.7]} 20. h5 {[%clk 0:01:23.5]} 20... Bxg5 {[%clk 0:01:15.7]}
21. Qxg5 {[%clk 0:01:22.7]} 21... Rd5 {[%clk 0:01:16.3]} 22. Re1 {[%clk
0:00:54.5]} 22... Qd8 {[%clk 0:00:57.3]} 23. Qg3 {[%clk 0:00:38.7]} 23... Rc8
{[%clk 0:00:30.1]} 24. Re3 {[%clk 0:00:38.8]} 24... Nd7 {[%clk 0:00:23]} 25.
hxg6 {[%clk 0:00:33.1]} 25... fxg6 {[%clk 0:00:18.5]} 26. Bxg6 {[%clk
0:00:33.6]} 26... Kh8 {[%clk 0:00:17.5]} 27. Bxh7 {[%clk 0:00:21.8]} 27... Qe7
{[%clk 0:00:05.4]} 28. Be4 {[%clk 0:00:21]} 28... Rd1+ {[%clk 0:00:05.4]} 29.
Kh2 {[%clk 0:00:21.6]} 29... Nf8 {[%clk 0:00:01.2]} 30. Qh3+ {[%clk 0:00:21.8]}
30... Nh7 {[%clk 0:00:01.9]} 31. Rg3 {[%clk 0:00:18.4]} 31... Rg8 {[%clk
0:00:01.8]} 32. Bb4 {[%clk 0:00:11.1]} 32... Rxg3 {[%clk 0:00:01.7]} 33. Qxg3
{[%clk 0:00:09.7]} 33... Qg7 {[%clk 0:00:02.3]} 34. Qh3 {[%clk 0:00:07.3]} 34...
Qxe5+ {[%clk 0:00:02.3]} 35. g3 {[%clk 0:00:04.8]} 35... Qxe4 {[%clk 0:00:02.7]}
36. Bc3+ {[%clk 0:00:05.5]} 36... e5 {[%clk 0:00:02.3]} 37. Qc8+ {[%clk
0:00:05.9]} 37... Kg7 {[%clk 0:00:02.7]} 38. Qb7+ {[%clk 0:00:06.3]} 38... Qxb7
{[%clk 0:00:01.6]} 0-1

[Event "*** SCC Grand Prix: Titled Tuesday Blitz"]
[Site "Chess.com"]
[Date "2020.07.21"]
[Round "7"]
[White "rugbyclub"]
[Black "Logman74"]
[Result "1-0"]
[WhiteElo "2140"]
[BlackElo "2320"]
[TimeControl "180+1"]
[EndTime "11:17:45 PDT"]
[Termination "rugbyclub won on time"]

1. c4 {[%clk 0:02:57.1]} 1... Nf6 {[%clk 0:02:47.7]} 2. Nc3 {[%clk 0:02:56.4]}
2... g6 {[%clk 0:02:45.1]} 3. e4 {[%clk 0:02:56.2]} 3... Bg7 {[%clk 0:02:44.9]}
4. d4 {[%clk 0:02:56.7]} 4... d6 {[%clk 0:02:44.2]} 5. Be2 {[%clk 0:02:54.1]}
5... O-O {[%clk 0:02:44.4]} 6. Nf3 {[%clk 0:02:54.6]} 6... e5 {[%clk 0:02:43.1]}
7. d5 {[%clk 0:02:54.5]} 7... a5 {[%clk 0:02:42.3]} 8. Bg5 {[%clk 0:02:54.2]}
8... Na6 {[%clk 0:02:41.7]} 9. Nd2 {[%clk 0:02:52]} 9... Qe8 {[%clk 0:02:41.3]}
10. a3 {[%clk 0:02:45.6]} 10... Nd7 {[%clk 0:02:38.6]} 11. b4 {[%clk 0:02:40.5]}
11... axb4 {[%clk 0:02:37.1]} 12. axb4 {[%clk 0:02:39.7]} 12... b6 {[%clk
0:02:24.6]} 13. f3 {[%clk 0:02:31.3]} 13... Bb7 {[%clk 0:00:59.7]} 14. Qb1
{[%clk 0:02:00.7]} 14... f6 {[%clk 0:00:58.7]} 15. Be3 {[%clk 0:01:59.3]} 15...
Qe7 {[%clk 0:00:54.7]} 16. Qb2 {[%clk 0:01:35]} 16... f5 {[%clk 0:00:45.9]} 17.
O-O {[%clk 0:01:30.6]} 17... Nf6 {[%clk 0:00:45.7]} 18. Ra2 {[%clk 0:01:01]}
18... Nh5 {[%clk 0:00:43.4]} 19. Rfa1 {[%clk 0:00:53.5]} 19... Nf4 {[%clk
0:00:43.2]} 20. Bf1 {[%clk 0:00:53.8]} 20... Qg5 {[%clk 0:00:39.9]} 21. Kh1
{[%clk 0:00:52.3]} 21... fxe4 {[%clk 0:00:37.3]} 22. Ndxe4 {[%clk 0:00:50.2]}
22... Qh5 {[%clk 0:00:37.8]} 23. c5 {[%clk 0:00:44.1]} 23... dxc5 {[%clk
0:00:32.9]} 24. bxc5 {[%clk 0:00:38.2]} 24... Nxc5 {[%clk 0:00:29.3]} 25. Bxc5
{[%clk 0:00:37.1]} 25... Rxa2 {[%clk 0:00:26.8]} 26. Rxa2 {[%clk 0:00:32.8]}
26... Bxd5 {[%clk 0:00:19]} 27. Nxd5 {[%clk 0:00:29]} 27... Nxd5 {[%clk
0:00:18.9]} 28. Bxf8 {[%clk 0:00:27.7]} 28... Bxf8 {[%clk 0:00:17.8]} 29. Bc4
{[%clk 0:00:22.1]} 29... c6 {[%clk 0:00:17.8]} 30. Qxb6 {[%clk 0:00:21.8]} 30...
Qh6 {[%clk 0:00:15.3]} 31. Qb1 {[%clk 0:00:17.2]} 31... Bb4 {[%clk 0:00:12.8]}
32. h3 {[%clk 0:00:14]} 32... Qe3 {[%clk 0:00:10.6]} 33. Qxb4 {[%clk 0:00:09.4]}
33... Qc1+ {[%clk 0:00:07.8]} 34. Kh2 {[%clk 0:00:09.6]} 34... Qf4+ {[%clk
0:00:07.2]} 35. g3 {[%clk 0:00:09.6]} 35... Qxf3 {[%clk 0:00:05.3]} 36. Bxd5+
{[%clk 0:00:09.5]} 36... cxd5 {[%clk 0:00:01.4]} 37. Rf2 {[%clk 0:00:09.9]} 1-0